[Event "Niedersachsen-ch A 2024"]
[Site "Verden Aller"]
[Date "2024.01.06"]
[Round "6.15"]
[White "Trunz, Michelle"]
[Black "Buecklers, Martin"]
[Result "1-0"]
[ECO "A42"]
[WhiteElo "2023"]
[BlackElo "1877"]
[Annotator "NA RC"]
[PlyCount "63"]
[EventDate "2024.01.01"]
[EventType "swiss"]
[EventCountry "GER"]
[SourceTitle "playchess.com"]
[Source "ChessBase"]
[SourceQuality "1"]
[TimeControl "40/5400+30:1800+30"]

1. d4 {[%emt 0:00:01]} g6 {[%emt 0:03:00]} 2. c4 {[%emt 0:00:04]} Bg7 {[%emt 0:00:09]} 3. Nc3 {[%emt 0:00:18]} d6 {[%emt 0:00:28]} 4. e4 {[%emt 0:00:24]} e5 {[%emt 0:01:02]} 5. d5 {[%emt 0:02:25]} f5 {[%emt 0:00:06]} 6. Bd3 {[%emt 0:04:16]} Nf6 {[%emt 0:01:03]} 7. h4 {[%emt 0:01:27]} Na6 {[%emt 0:05:22]} 8. h5 {[%emt 0:05:43]} f4 {[%emt 0:03:14]} 9. hxg6 {[%emt 0:02:02]} hxg6 {[%emt 0:00:11]} 10. Rxh8+ {[%emt 0:00:03]} Bxh8 {[%emt 0:00:09]} 11. g3 {[%emt 0:02:07]} fxg3 {[%emt 0:06:43]} 12. fxg3 {[%emt 0:00:07]} Bg4 {[%emt 0:00:55]} 13. Be2 {[%emt 0:03:41]} Qd7 {[%emt 0:01:13]} 14. Be3 {[%emt 0:05:39]} Bxe2 {[%emt 0:02:14]} 15. Ngxe2 {[%emt 0:01:32]} Qg4 {[%emt 0:06:22]} 16. Qb3 {[%emt 0:10:30]} Nxe4 {[%emt 0:20:10]} 17. Qxb7 {[%emt 0:05:59]} Rb8 {[%emt 0:01:21]} 18. Qc6+ {[%emt 0:00:14]} Ke7 {[%emt 0:01:22]} 19. O-O-O {[%emt 0:03:56]} Nxg3 {[%emt 0:10:18]} 20. Nxg3 {[%emt 0:01:25]} Qxg3 {[%emt 0:00:16]} 21. Bxa7 {[%emt 0:02:32]} Qf4+ {[%emt 0:04:11]} 22. Kb1 {[%emt 0:01:34]} Qf5+ {[%emt 0:11:40]} 23. Ka1 {[%emt 0:00:25]} Nb4 {[%emt 0:02:19]} 24. Qxc7+ {[%emt 0:01:05]} Kf6 {[%emt 0:02:10]} 25. Qxd6+ {[%emt 0:03:14]} Kg5 {[%emt 0:02:52]} 26. Rg1+ {[%emt 0:07:48]} Kh5 {[%emt 0:00:55]} 27. a3 {[%emt 0:07:43]} Nc2+ {[%emt 0:04:49]} 28. Ka2 {[%emt 0:00:04]} Rf8 {[%emt 0:01:38]} 29. Ne2 {[%emt 0:02:04]} Qf3 {[%emt 0:01:20]} 30. Qxg6+ {[%emt 0:00:14]} Kh4 {[%emt 0:00:24]} 31. Bf2+ {[%emt 0:00:30]} Qxf2 {[%emt 0:00:11]} 32. Qg4# {[%emt 0:00:06]} 1-0

[Event "Niedersachsen-ch A 2024"]
[Site "Verden Aller"]
[Date "2024.01.06"]
[Round "6.16"]
[White "Stoy, Ulf"]
[Black "Aden, Dagmar"]
[Result "1/2-1/2"]
[ECO "A25"]
[WhiteElo "1985"]
[BlackElo "1766"]
[Annotator "NA RC"]
[PlyCount "153"]
[EventDate "2024.01.01"]
[EventType "swiss"]
[EventCountry "GER"]
[SourceTitle "playchess.com"]
[Source "ChessBase"]
[SourceQuality "1"]
[TimeControl "40/5400+30:1800+30"]

1. c4 {[%emt 0:00:01]} Nf6 {[%emt 0:00:11]} 2. g3 {[%emt 0:00:14]} g6 {[%emt 0:00:21]} 3. Bg2 {[%emt 0:00:07]} Bg7 {[%emt 0:00:13]} 4. Nc3 {[%emt 0:01:07]} d6 {[%emt 0:00:38]} 5. e4 {[%emt 0:01:20]} e5 {[%emt 0:02:23]} 6. Nge2 {[%emt 0:00:18]} Nc6 {[%emt 0:02:00]} 7. O-O {[%emt 0:00:43]} Be6 {[%emt 0:02:19]} 8. Nd5 {[%emt 0:02:42]} Ne7 {[%emt 0:02:22]} 9. d4 {[%emt 0:03:26]} Nfxd5 {[%emt 0:04:19]} 10. cxd5 {[%emt 0:00:24]} Bd7 {[%emt 0:00:40]} 11. dxe5 {[%emt 0:02:40]} Bxe5 {[%emt 0:01:24]} 12. Bh6 {[%emt 0:03:20]} Ng8 {[%emt 0:02:33]} 13. Be3 {[%emt 0:02:42]} Bg7 {[%emt 0:05:04]} 14. Qd2 {[%emt 0:02:35]} Nf6 {[%emt 0:03:39]} 15. Rac1 {[%emt 0:04:17]} O-O {[%emt 0:06:24]} 16. f4 {[%emt 0:01:49]} Ng4 {[%emt 0:02:54]} 17. Bd4 {[%emt 0:00:23]} Bxd4+ {[%emt 0:01:23]} 18. Qxd4 {[%emt 0:03:37]} c5 {[%emt 0:04:03]} 19. dxc6 {[%emt 0:01:06]} Bxc6 {[%emt 0:00:13]} 20. h3 {[%emt 0:00:59]} Nf6 {[%emt 0:01:43]} 21. Nc3 {[%emt 0:01:41]} Nd7 {[%emt 0:04:59]} 22. Rcd1 {[%emt 0:02:39]} Re8 {[%emt 0:02:25]} 23. Qxd6 {[%emt 0:02:15]} Qb6+ {[%emt 0:01:26]} 24. Rf2 {[%emt 0:00:14]} Rad8 {[%emt 0:03:16]} 25. Nd5 {[%emt 0:08:41]} Bxd5 {[%emt 0:02:37]} 26. Qxb6 {[%emt 0:00:23]} Nxb6 {[%emt 0:00:11]} 27. exd5 {[%emt 0:00:09]} Rd6 {[%emt 0:02:19]} 28. b3 {[%emt 0:02:11]} Red8 {[%emt 0:03:15]} 29. Rc2 {[%emt 0:02:06]} R6d7 {[%emt 0:04:06]} 30. Rcd2 {[%emt 0:03:36]} Rd6 {[%emt 0:00:53]} 31. Rd4 {[%emt 0:01:20]} Rc8 {[%emt 0:02:07]} 32. R1d2 {[%emt 0:01:38]} Kf8 {[%emt 0:02:00]} 33. g4 {[%emt 0:01:58]} f6 {[%emt 0:04:07]} 34. g5 {[%emt 0:01:34]} Kf7 {[%emt 0:02:25]} 35. h4 {[%emt 0:03:11]} f5 {[%emt 0:05:28]} 36. Bf3 {[%emt 0:05:34]} Rc3 {[%emt 0:00:40]} 37. Kf2 {[%emt 0:01:26]} Rc5 {[%emt 0:02:08]} 38. Kg3 {[%emt 0:04:29]} Rc3 {[%emt 0:00:46]} 39. R4d3 {[%emt 0:04:00]} Rc5 {[%emt 0:02:12]} 40. h5 {[%emt 0:00:29]} a5 {[%emt 0:03:01]} 41. hxg6+ {[%emt 0:38:29]} hxg6 {[%emt 0:30:41]} 42. Rh2 {[%emt 0:13:58]} Kg7 {[%emt 0:10:12]} 43. Re2 {[%emt 0:00:34]} Kf7 {[%emt 0:01:05]} 44. Rde3 {[%emt 0:03:25]} Rc7 {[%emt 0:00:46]} 45. Re6 {[%emt 0:00:00]} Rcd7 {[%emt 0:00:00]} 46. Rxd6 {[%emt 0:00:00]} Rxd6 {[%emt 0:00:00]} 47. Re6 {[%emt 0:00:00]} Rxe6 {[%emt 0:00:00]} 48. dxe6+ {[%emt 0:00:00]} Kxe6 {[%emt 0:00:00]} 49. Bxb7 {[%emt 0:00:00]} Kd6 {[%emt 0:00:00]} 50. Kf3 {[%emt 0:00:00]} Kc7 {[%emt 0:00:00]} 51. Ba6 {[%emt 0:00:00]} Kd6 {[%emt 0:00:00]} 52. a3 {[%emt 0:00:00]} Kc5 {[%emt 0:00:00]} 53. Be2 {[%emt 0:00:00]} Kd4 {[%emt 0:00:00]} 54. b4 {[%emt 0:00:00]} axb4 {[%emt 0:00:00]} 55. axb4 {[%emt 0:00:00]} Nd5 {[%emt 0:00:00]} 56. Bb5 {[%emt 0:00:00]} Nc7 {[%emt 0:00:00]} 57. Bd7 {[%emt 0:01:54]} Kc4 {[%emt 0:00:00]} 58. b5 {[%emt 0:00:08]} Nxb5 {[%emt 0:00:00]} 59. Be8 {[%emt 0:02:02]} Nd6 {[%emt 0:00:00]} 60. Bxg6 {[%emt 0:00:21]} Kd5 {[%emt 0:00:00]} 61. Bh7 {[%emt 0:00:42]} Ke6 {[%emt 0:00:00]} 62. Bg8+ {[%emt 0:00:08]} Ke7 {[%emt 0:00:00]} 63. Bb3 {[%emt 0:01:11]} Kf8 {[%emt 0:00:00]} 64. Ke3 {[%emt 0:00:13]} Kg7 {[%emt 0:00:00]} 65. Kd4 {[%emt 0:00:31]} Kg6 {[%emt 0:00:07]} 66. Ke5 {[%emt 0:00:53]} Ne4 {[%emt 0:00:43]} 67. Bc2 {[%emt 0:01:10]} Nxg5 {[%emt 0:01:03]} 68. Bxf5+ {[%emt 0:00:09]} Kh6 {[%emt 0:00:42]} 69. Kf6 {[%emt 0:00:38]} Nf3 {[%emt 0:00:22]} 70. Bc2 {[%emt 0:01:14]} Nh4 {[%emt 0:00:58]} 71. Kf7 {[%emt 0:00:33]} Kh5 {[%emt 0:00:56]} 72. Bd1+ {[%emt 0:00:26]} Kh6 {[%emt 0:00:22]} 73. Bg4 {[%emt 0:00:16]} Ng6 {[%emt 0:00:52]} 74. f5 {[%emt 0:00:53]} Ne5+ {[%emt 0:00:09]} 75. Ke7 {[%emt 0:00:12]} Nxg4 {[%emt 0:00:08]} 76. f6 {[%emt 0:00:03]} Nxf6 {[%emt 0:00:05]} 77. Kxf6 {[%emt 0:05:33]} 1/2-1/2

[Event "Niedersachsen-ch A 2024"]
[Site "Verden Aller"]
[Date "2024.01.06"]
[Round "6.17"]
[White "Reins, Henning"]
[Black "Kelemen, Alexander"]
[Result "0-1"]
[ECO "B20"]
[WhiteElo "1950"]
[BlackElo "1817"]
[Annotator "NA RC"]
[PlyCount "50"]
[EventDate "2024.01.01"]
[EventType "swiss"]
[EventCountry "GER"]
[SourceTitle "playchess.com"]
[Source "ChessBase"]
[SourceQuality "1"]
[TimeControl "40/5400+30:1800+30"]

1. e4 {[%emt 0:00:06]} c5 {[%emt 0:01:02]} 2. b3 {[%emt 0:01:29]} d6 {[%emt 0:01:16]} 3. Bb2 {[%emt 0:00:27]} Nf6 {[%emt 0:00:24]} 4. Nc3 {[%emt 0:00:16]} Nc6 {[%emt 0:00:54]} 5. f4 {[%emt 0:00:26]} g6 {[%emt 0:01:34]} 6. Bb5 {[%emt 0:02:14]} Bd7 {[%emt 0:02:09]} 7. e5 {[%emt 0:03:43]} dxe5 {[%emt 0:13:05]} 8. fxe5 {[%emt 0:00:17]} Nxe5 {[%emt 0:00:24]} 9. Qe2 {[%emt 0:01:11]} Qb6 {[%emt 0:38:04]} 10. Qxe5 {[%emt 0:22:28]} Bxb5 {[%emt 0:00:09]} 11. Nd5 {[%emt 0:00:29]} Nxd5 {[%emt 0:00:46]} 12. Qxh8 {[%emt 0:01:13]} f6 {[%emt 0:05:57]} 13. Qxh7 {[%emt 0:07:04]} Qe6+ {[%emt 0:01:07]} 14. Kd1 {[%emt 0:01:01]} Qg4+ {[%emt 0:18:02]} 15. Nf3 {[%emt 0:08:03]} Qxg2 {[%emt 0:00:12]} 16. Rg1 {[%emt 0:04:53]} Qxf3+ {[%emt 0:00:17]} 17. Kc1 {[%emt 0:00:37]} Nf4 {[%emt 0:01:07]} 18. Re1 {[%emt 0:07:41]} Qf2 {[%emt 0:02:48]} 19. Rd1 {[%emt 0:13:22]} Be2 {[%emt 0:00:43]} 20. c4 {[%emt 0:04:30]} Bxd1 {[%emt 0:01:26]} 21. Kxd1 {[%emt 0:00:13]} Qf1+ {[%emt 0:03:38]} 22. Kc2 {[%emt 0:00:02]} Qd3+ {[%emt 0:00:10]} 23. Kd1 {[%emt 0:01:19]} O-O-O {[%emt 0:00:52]} 24. Bc1 {[%emt 0:00:09]} Ne2 {[%emt 0:00:46]} 25. Ke1 {[%emt 0:00:26]} Nxc1 {[%emt 0:00:14]} 0-1

[Event "Niedersachsen-ch A 2024"]
[Site "Verden Aller"]
[Date "2024.01.06"]
[Round "6.18"]
[White "ter Stal, Lars"]
[Black "Ehlert, Horst"]
[Result "1/2-1/2"]
[ECO "B41"]
[WhiteElo "1770"]
[BlackElo "1940"]
[Annotator "NA RC"]
[PlyCount "28"]
[EventDate "2024.01.01"]
[EventType "swiss"]
[EventCountry "GER"]
[SourceTitle "playchess.com"]
[Source "ChessBase"]
[SourceQuality "1"]
[TimeControl "40/5400+30:1800+30"]

1. e4 {[%emt 0:00:02]} c5 {[%emt 0:00:17]} 2. Nf3 {[%emt 0:00:10]} e6 {[%emt 0:02:08]} 3. d4 {[%emt 1:31:48]} cxd4 {[%emt 0:01:34]} 4. Nxd4 {[%emt 0:00:00]} a6 {[%emt 0:00:45]} 5. Be2 {[%emt 0:00:00]} Nf6 {[%emt 0:03:30]} 6. Qd3 {[%emt 0:00:00]} Qc7 {[%emt 0:03:08]} 7. O-O {[%emt 0:00:00]} Nc6 {[%emt 0:11:09]} 8. Nxc6 {[%emt 0:00:00]} dxc6 {[%emt 0:01:46]} 9. Be3 {[%emt 0:00:00]} e5 {[%emt 0:02:39]} 10. c4 {[%emt 0:00:00]} Be6 {[%emt 0:05:34]} 11. c5 {[%emt 0:00:00]} Be7 {[%emt 0:06:52]} 12. Nd2 {[%emt 0:00:00]} O-O {[%emt 0:06:10]} 13. f3 {[%emt 0:00:00]} Nh5 {[%emt 0:05:27]} 14. Qc3 {[%emt 0:00:00]} Rad8 {[%emt 0:07:27]} 1/2-1/2

[Event "Niedersachsen-ch A 2024"]
[Site "Verden Aller"]
[Date "2024.01.06"]
[Round "6.19"]
[White "Stein, Luis"]
[Black "Gottschalk, Siegfried"]
[Result "1/2-1/2"]
[ECO "C00"]
[WhiteElo "1762"]
[BlackElo "1939"]
[Annotator "NA RC"]
[PlyCount "109"]
[EventDate "2024.01.01"]
[EventType "swiss"]
[EventCountry "GER"]
[SourceTitle "playchess.com"]
[Source "ChessBase"]
[SourceQuality "1"]
[TimeControl "40/5400+30:1800+30"]

1. e4 {[%emt 0:00:01]} e6 {[%emt 0:01:06]} 2. c4 {[%emt 0:00:04]} d5 {[%emt 0:00:38]} 3. cxd5 {[%emt 0:00:05]} exd5 {[%emt 0:00:04]} 4. exd5 {[%emt 0:00:03]} Nf6 {[%emt 0:00:27]} 5. Bb5+ {[%emt 0:00:07]} Nbd7 {[%emt 0:01:07]} 6. d4 {[%emt 0:00:17]} Be7 {[%emt 0:01:06]} 7. Nc3 {[%emt 0:01:57]} O-O {[%emt 0:01:22]} 8. Nf3 {[%emt 0:00:56]} Nb6 {[%emt 0:01:07]} 9. Qc2 {[%emt 0:05:03]} Nbxd5 {[%emt 0:05:37]} 10. a3 {[%emt 0:00:16]} c6 {[%emt 0:07:59]} 11. Bd3 {[%emt 0:00:05]} Re8 {[%emt 0:00:41]} 12. O-O {[%emt 0:01:19]} Bg4 {[%emt 0:03:25]} 13. Ne5 {[%emt 0:01:55]} Be6 {[%emt 0:03:41]} 14. Bg5 {[%emt 0:07:33]} h6 {[%emt 0:02:00]} 15. Bh4 {[%emt 0:02:38]} Nf4 {[%emt 0:03:08]} 16. Rad1 {[%emt 0:03:28]} Nxd3 {[%emt 0:05:22]} 17. Qxd3 {[%emt 0:00:07]} Bd5 {[%emt 0:01:55]} 18. Bg3 {[%emt 0:05:23]} Nh5 {[%emt 0:08:12]} 19. Nxd5 {[%emt 0:26:55]} Qxd5 {[%emt 0:01:24]} 20. Qf5 {[%emt 0:00:21]} Nxg3 {[%emt 0:07:51]} 21. fxg3 {[%emt 0:00:28]} f6 {[%emt 0:01:33]} 22. Ng6 {[%emt 0:06:13]} Qxf5 {[%emt 0:03:37]} 23. Nxe7+ {[%emt 0:00:06]} Rxe7 {[%emt 0:00:15]} 24. Rxf5 {[%emt 0:00:04]} Rd8 {[%emt 0:03:37]} 25. Rf2 {[%emt 0:03:53]} Kf7 {[%emt 0:04:30]} 26. Rfd2 {[%emt 0:00:18]} Ke6 {[%emt 0:03:00]} 27. Re1+ {[%emt 0:01:05]} Kd6 {[%emt 0:00:16]} 28. Rxe7 {[%emt 0:00:30]} Kxe7 {[%emt 0:00:01]} 29. Kf2 {[%emt 0:00:22]} Kd6 {[%emt 0:00:39]} 30. Ke3 {[%emt 0:03:15]} Re8+ {[%emt 0:08:09]} 31. Kd3 {[%emt 0:00:20]} Re1 {[%emt 0:03:37]} 32. h3 {[%emt 0:00:50]} f5 {[%emt 0:06:06]} 33. Rf2 {[%emt 0:02:08]} Ke6 {[%emt 0:01:06]} 34. g4 {[%emt 0:15:33]} fxg4 {[%emt 0:01:40]} 35. hxg4 {[%emt 0:00:08]} Ke7 {[%emt 0:00:30]} 36. Rf4 {[%emt 0:03:42]} Re6 {[%emt 0:00:32]} 37. Rf3 {[%emt 0:05:17]} Rf6 {[%emt 0:01:45]} 38. Re3+ {[%emt 0:00:08]} Kd7 {[%emt 0:00:14]} 39. Rg3 {[%emt 0:02:12]} g5 {[%emt 0:02:02]} 40. Rf3 {[%emt 0:04:17]} Rxf3+ {[%emt 0:08:03]} 41. gxf3 {[%emt 0:30:05]} Kd6 {[%emt 0:30:15]} 42. Ke4 {[%emt 0:00:00]} Ke6 {[%emt 0:00:00]} 43. b4 {[%emt 0:00:00]} b6 {[%emt 0:00:00]} 44. a4 {[%emt 0:00:00]} Kd6 {[%emt 0:00:00]} 45. b5 {[%emt 0:00:00]} c5 {[%emt 0:00:00]} 46. dxc5+ {[%emt 0:00:00]} Kxc5 {[%emt 0:00:00]} 47. Kf5 {[%emt 0:00:00]} Kb4 {[%emt 0:00:00]} 48. Kg6 {[%emt 0:00:00]} Kxa4 {[%emt 0:00:00]} 49. Kxh6 {[%emt 0:00:00]} Kxb5 {[%emt 0:00:00]} 50. Kxg5 {[%emt 0:00:00]} a5 {[%emt 0:00:00]} 51. f4 {[%emt 0:00:00]} a4 {[%emt 0:00:00]} 52. f5 {[%emt 0:00:00]} a3 {[%emt 0:00:00]} 53. f6 {[%emt 0:00:00]} a2 {[%emt 0:00:00]} 54. f7 {[%emt 0:00:00]} a1=Q {[%emt 0:00:00]} 55. f8=Q {[%emt 0:00:00]} 1/2-1/2

[Event "Niedersachsen-ch A 2024"]
[Site "Verden Aller"]
[Date "2024.01.06"]
[Round "6.20"]
[White "Moeller, Tom"]
[Black "Heirich, Andreas"]
[Result "1/2-1/2"]
[ECO "A45"]
[WhiteElo "1677"]
[BlackElo "1925"]
[Annotator "NA RC"]
[PlyCount "47"]
[EventDate "2024.01.01"]
[EventType "swiss"]
[EventCountry "GER"]
[SourceTitle "playchess.com"]
[Source "ChessBase"]
[SourceQuality "1"]
[TimeControl "40/5400+30:1800+30"]

1. d4 {[%emt 0:00:02]} Nf6 {[%emt 0:00:09]} 2. Nc3 {[%emt 0:00:10]} g6 {[%emt 0:00:19]} 3. Bf4 {[%emt 0:00:09]} Bg7 {[%emt 0:00:20]} 4. Qd2 {[%emt 0:00:14]} O-O {[%emt 0:00:17]} 5. Bh6 {[%emt 0:00:05]} d6 {[%emt 0:01:19]} 6. h4 {[%emt 0:00:32]} e5 {[%emt 0:00:37]} 7. Bxg7 {[%emt 0:05:18]} Kxg7 {[%emt 0:01:08]} 8. d5 {[%emt 0:01:40]} Bf5 {[%emt 0:01:26]} 9. f3 {[%emt 0:03:38]} Bd7 {[%emt 0:01:55]} 10. e4 {[%emt 0:04:05]} h5 {[%emt 0:07:10]} 11. g3 {[%emt 0:03:46]} Nh7 {[%emt 0:01:45]} 12. Bh3 {[%emt 0:01:41]} f5 {[%emt 0:04:22]} 13. O-O-O {[%emt 0:00:09]} Qf6 {[%emt 0:04:20]} 14. Rf1 {[%emt 0:03:40]} f4 {[%emt 0:04:35]} 15. Bxd7 {[%emt 0:02:02]} Nxd7 {[%emt 0:03:15]} 16. Nge2 {[%emt 0:00:08]} fxg3 {[%emt 0:12:12]} 17. Rhg1 {[%emt 0:00:48]} Kf7 {[%emt 0:14:30]} 18. f4 {[%emt 0:04:35]} Ke7 {[%emt 0:00:59]} 19. Rxg3 {[%emt 0:00:25]} Rg8 {[%emt 0:03:35]} 20. Rgf3 {[%emt 0:18:51]} Qxh4 {[%emt 0:08:02]} 21. fxe5 {[%emt 0:00:44]} Nxe5 {[%emt 0:00:18]} 22. Rf4 {[%emt 0:00:10]} Qh2 {[%emt 0:04:15]} 23. R4f2 {[%emt 0:03:31]} Qh4 {[%emt 0:00:28]} 24. Rf4 {[%emt 0:01:35]} 1/2-1/2

[Event "Niedersachsen-ch A 2024"]
[Site "Verden Aller"]
[Date "2024.01.06"]
[Round "6.21"]
[White "Seer, Maurice"]
[Black "Carsten, Juergen"]
[Result "1-0"]
[ECO "C65"]
[WhiteElo "1912"]
[BlackElo "1749"]
[Annotator "NA RC"]
[PlyCount "105"]
[EventDate "2024.01.01"]
[EventType "swiss"]
[EventCountry "GER"]
[SourceTitle "playchess.com"]
[Source "ChessBase"]
[SourceQuality "1"]
[TimeControl "40/5400+30:1800+30"]

1. e4 {[%emt 0:00:03]} e5 {[%emt 0:00:25]} 2. Nf3 {[%emt 0:00:05]} Nc6 {[%emt 0:01:06]} 3. Bb5 {[%emt 0:00:08]} Nf6 {[%emt 0:00:17]} 4. O-O {[%emt 0:00:45]} Be7 {[%emt 0:00:44]} 5. Re1 {[%emt 0:02:15]} O-O {[%emt 0:02:20]} 6. Bxc6 {[%emt 0:03:41]} dxc6 {[%emt 0:04:09]} 7. Nxe5 {[%emt 0:01:22]} Bc5 {[%emt 0:01:12]} 8. Nf3 {[%emt 0:05:51]} Bg4 {[%emt 0:04:42]} 9. c3 {[%emt 0:03:36]} Qd3 {[%emt 0:13:56]} 10. Qe2 {[%emt 0:09:09]} Rad8 {[%emt 0:04:58]} 11. Qxd3 {[%emt 0:03:19]} Rxd3 {[%emt 0:00:27]} 12. Ne5 {[%emt 0:01:50]} Rdd8 {[%emt 0:01:16]} 13. d4 {[%emt 0:01:57]} Bb6 {[%emt 0:01:28]} 14. Nxg4 {[%emt 0:01:50]} Nxg4 {[%emt 0:01:02]} 15. h3 {[%emt 0:01:15]} Nf6 {[%emt 0:02:14]} 16. Bg5 {[%emt 0:01:02]} Rde8 {[%emt 0:01:42]} 17. Bxf6 {[%emt 0:01:28]} gxf6 {[%emt 0:00:07]} 18. Nd2 {[%emt 0:01:27]} a6 {[%emt 0:00:45]} 19. Nf3 {[%emt 0:06:37]} c5 {[%emt 0:00:53]} 20. d5 {[%emt 0:04:38]} c6 {[%emt 0:03:10]} 21. c4 {[%emt 0:07:34]} Bc7 {[%emt 0:09:11]} 22. Rad1 {[%emt 0:03:30]} Ba5 {[%emt 0:01:37]} 23. Re2 {[%emt 0:01:07]} Rd8 {[%emt 0:02:59]} 24. Kf1 {[%emt 0:03:25]} h5 {[%emt 0:03:43]} 25. Nh4 {[%emt 0:02:35]} Rfe8 {[%emt 0:02:22]} 26. Nf5 {[%emt 0:02:06]} Kh7 {[%emt 0:00:32]} 27. f4 {[%emt 0:07:18]} Rd7 {[%emt 0:06:31]} 28. Rd3 {[%emt 0:01:33]} cxd5 {[%emt 0:04:23]} 29. exd5 {[%emt 0:04:14]} Red8 {[%emt 0:06:42]} 30. g4 {[%emt 0:01:36]} Kg6 {[%emt 0:02:53]} 31. Rde3 {[%emt 0:05:29]} Bc7 {[%emt 0:02:20]} 32. Rf3 {[%emt 0:01:44]} Bd6 {[%emt 0:03:26]} 33. Nxd6 {[%emt 0:01:59]} Rxd6 {[%emt 0:00:47]} 34. Rfe3 {[%emt 0:01:34]} b5 {[%emt 0:04:42]} 35. b3 {[%emt 0:00:24]} R8d7 {[%emt 0:01:58]} 36. Kg2 {[%emt 0:00:52]} h4 {[%emt 0:00:59]} 37. Re8 {[%emt 0:01:01]} Kg7 {[%emt 0:00:45]} 38. Rc8 {[%emt 0:00:38]} bxc4 {[%emt 0:02:15]} 39. bxc4 {[%emt 0:00:10]} Rd8 {[%emt 0:02:35]} 40. Rxc5 {[%emt 0:00:32]} Rb6 {[%emt 0:01:05]} 41. Rd2 {[%emt 0:33:40]} Kf8 {[%emt 0:01:56]} 42. Rc7 {[%emt 0:00:00]} Rbd6 {[%emt 0:01:04]} 43. Kf3 {[%emt 0:00:00]} a5 {[%emt 0:03:19]} 44. f5 {[%emt 0:00:00]} Kg7 {[%emt 0:01:21]} 45. Kf4 {[%emt 0:00:00]} Kh6 {[%emt 0:04:13]} 46. Rxf7 {[%emt 0:00:00]} Rg8 {[%emt 0:00:37]} 47. c5 {[%emt 0:00:00]} Rgd8 {[%emt 0:04:13]} 48. cxd6 {[%emt 0:00:00]} Rxd6 {[%emt 0:00:13]} 49. Rxf6+ {[%emt 0:00:00]} Rxf6 {[%emt 0:00:44]} 50. g5+ {[%emt 0:00:00]} Kh5 {[%emt 0:01:08]} 51. gxf6 {[%emt 0:00:00]} Kh6 {[%emt 0:00:11]} 52. d6 {[%emt 0:00:00]} Kh5 {[%emt 0:00:07]} 53. d7 {[%emt 0:00:00]} 1-0

[Event "Niedersachsen-ch A 2024"]
[Site "Verden Aller"]
[Date "2024.01.06"]
[Round "6.22"]
[White "Ay, Furkan"]
[Black "Langer, Michael S."]
[Result "1-0"]
[ECO "B12"]
[WhiteElo "1544"]
[BlackElo "1888"]
[Annotator "NA RC"]
[PlyCount "75"]
[EventDate "2024.01.01"]
[EventType "swiss"]
[EventCountry "GER"]
[SourceTitle "playchess.com"]
[Source "ChessBase"]
[SourceQuality "1"]
[TimeControl "40/5400+30:1800+30"]

1. e4 {[%emt 0:00:08]} c6 {[%emt 0:00:18]} 2. d4 {[%emt 0:00:07]} d5 {[%emt 0:00:15]} 3. f3 {[%emt 0:00:56]} e6 {[%emt 0:00:14]} 4. Nc3 {[%emt 0:00:06]} Bb4 {[%emt 0:01:21]} 5. Bd2 {[%emt 0:00:06]} Bxc3 {[%emt 0:01:14]} 6. Bxc3 {[%emt 0:00:06]} Nf6 {[%emt 0:05:01]} 7. Bd3 {[%emt 0:02:35]} a5 {[%emt 0:09:56]} 8. Nh3 {[%emt 0:02:53]} b6 {[%emt 0:02:28]} 9. Bd2 {[%emt 0:06:02]} dxe4 {[%emt 0:04:26]} 10. fxe4 {[%emt 0:03:34]} Qxd4 {[%emt 0:01:36]} 11. Qf3 {[%emt 0:08:10]} e5 {[%emt 0:05:58]} 12. Bc3 {[%emt 0:02:43]} Qc5 {[%emt 0:01:53]} 13. a3 {[%emt 0:01:59]} Bg4 {[%emt 0:06:33]} 14. Qg3 {[%emt 0:00:48]} Nbd7 {[%emt 0:00:26]} 15. Nf2 {[%emt 0:00:23]} Be6 {[%emt 0:00:32]} 16. O-O {[%emt 0:00:46]} O-O {[%emt 0:05:52]} 17. Be2 {[%emt 0:00:57]} Nxe4 {[%emt 0:02:02]} 18. Qd3 {[%emt 0:08:25]} Nxc3 {[%emt 0:00:44]} 19. bxc3 {[%emt 0:00:16]} b5 {[%emt 0:02:56]} 20. Kh1 {[%emt 0:00:14]} f5 {[%emt 0:02:01]} 21. Qd2 {[%emt 0:02:58]} Bd5 {[%emt 0:05:15]} 22. Nd3 {[%emt 0:01:51]} Qe7 {[%emt 0:00:29]} 23. Rfe1 {[%emt 0:00:50]} Qf6 {[%emt 0:03:04]} 24. Rab1 {[%emt 0:02:03]} Qg6 {[%emt 0:04:01]} 25. Bf3 {[%emt 0:01:00]} Bxf3 {[%emt 0:06:29]} 26. gxf3 {[%emt 0:00:27]} Rad8 {[%emt 0:00:25]} 27. Rg1 {[%emt 0:00:47]} Qf6 {[%emt 0:00:43]} 28. Rg2 {[%emt 0:01:48]} Nc5 {[%emt 0:10:30]} 29. Rbg1 {[%emt 0:00:34]} Rf7 {[%emt 0:01:47]} 30. Qe3 {[%emt 0:01:57]} Nxd3 {[%emt 0:00:32]} 31. cxd3 {[%emt 0:00:07]} Qd6 {[%emt 0:02:14]} 32. h4 {[%emt 0:03:48]} f4 {[%emt 0:02:40]} 33. Qe2 {[%emt 0:01:37]} Re7 {[%emt 0:00:37]} 34. Qe4 {[%emt 0:03:50]} Qxd3 {[%emt 0:06:59]} 35. Qxc6 {[%emt 0:00:52]} Qd5 {[%emt 0:02:12]} 36. Qf6 {[%emt 0:00:36]} Rdd7 {[%emt 0:01:17]} 37. h5 {[%emt 0:01:18]} Qe6 {[%emt 0:00:52]} 38. Rxg7+ {[%emt 0:41:53]} 1-0